fUSD/lending_fUSD_20240319
["ID","MTS","AMOUNT","RATE_DAILY","PERIOD"]
[319513896,1710815475107,-518.95,0.00055068,120]
[319513897,1710815475118,-500.0,0.00055068,120]
[319513898,1710815475128,-3651.02,0.00055068,120]
[319513899,1710815475137,-500.0,0.00055068,120]
[319513900,1710815475147,-500.0,0.00055068,120]
[319513901,1710815475156,-500.0,0.00055068,120]
[319513902,1710815475166,-500.0,0.00055068,120]
[319513903,1710815475179,-627.0,0.00055233,120]
[319513904,1710815475191,-627.0,0.00055233,120]
[319513905,1710815475200,-1420.09157811,0.00055242,120]
[319513906,1710815475209,-1658.58506968,0.00055242,30]
[319513907,1710815475221,-1824.09283783,0.00055242,2]
[319513908,1710815475230,-183.98888889,0.00055288,120]
[319513909,1710815475240,-422.72222222,0.00055288,120]
[319513910,1710815475249,-7639.7153379,0.00055304,2]
[319513911,1710815475258,-1631.3227314,0.00055304,2]
[319513912,1710815475267,-1183.6832093,0.00055304,2]
[319513913,1710815475276,-14059.3688903,0.00055304,2]
[319513914,1710815475286,-1045.6294362,0.00055304,2]
[319513915,1710815475296,-251.9681766,0.00055341,120]
[319513916,1710815475306,-500.0,0.00055342,30]
[319513917,1710815475315,-500.0,0.00055342,120]
[319513918,1710815475325,-500.0,0.00055342,120]
[319513919,1710815475334,-500.0,0.00055342,120]
[319513920,1710815475343,-500.0,0.00055342,120]
[319513921,1710815475353,-500.0,0.00055342,120]
[319513922,1710815475362,-500.47977485,0.00055342,120]
[319513923,1710815475371,-500.0,0.00055342,120]
[319513924,1710815475380,-500.47521604,0.00055342,120]
[319513925,1710815475390,-500.0,0.00055342,120]
[319513926,1710815475399,-500.0,0.00055342,120]
[319513927,1710815475409,-500.0,0.00055342,120]
[319513928,1710815475418,-500.0,0.00055342,120]
[319513929,1710815475429,-500.0,0.00055342,120]
[319513930,1710815475439,-500.0,0.00055342,120]
[319513931,1710815475448,-500.0,0.00055342,120]
[319513932,1710815475458,-500.0,0.00055342,120]
[319513933,1710815475467,-500.0,0.00055342,120]
[319513934,1710815475476,-500.0,0.00055342,120]
[319513935,1710815475485,-526.5,0.00055342,120]
[319513936,1710815475494,-500.0,0.00055342,120]
[319513937,1710815475503,-500.0,0.00055342,120]
[319513938,1710815475513,-500.0,0.00055342,120]
[319513939,1710815475522,-500.0,0.00055342,120]
[319513940,1710815475532,-500.0,0.00055342,120]
[319513941,1710815475541,-1145.69,0.00055342,120]
[319513942,1710815475550,-500.0,0.00055342,120]
[319513943,1710815475560,-925.71,0.00055342,120]
[319513944,1710815475569,-500.0,0.00055342,120]
[319513945,1710815475578,-500.0,0.00055342,120]
[319513946,1710815475587,-500.0,0.00055342,120]
[319513947,1710815475597,-1056.46,0.00055342,120]
[319513948,1710815475606,-500.0,0.00055342,120]
[319513949,1710815475614,-687.06,0.00055342,120]
[319513950,1710815475624,-500.0,0.00055342,120]
[319513951,1710815475633,-500.0,0.00055342,120]
[319513952,1710815475642,-510.19733188,0.00055342,120]
[319513953,1710815475651,-500.0,0.00055342,120]
[319513954,1710815475660,-500.0,0.00055342,120]
[319513955,1710815475669,-500.0,0.00055342,120]
[319513956,1710815475681,-249.87370747,0.00055342,120]
[319513957,1710815475690,-500.0,0.00055342,120]
[319513958,1710815475699,-500.0,0.00055342,120]
[319513959,1710815475709,-500.0,0.00055342,120]
[319513960,1710815475718,-500.0,0.00055342,120]
[319513961,1710815475727,-500.0,0.00055342,120]
[319513962,1710815475736,-575.96357347,0.00055342,120]
[319513963,1710815475745,-500.0,0.00055342,120]
[319513964,1710815475754,-500.0,0.00055342,120]
[319513965,1710815475763,-500.0,0.00055342,120]
[319513966,1710815475773,-500.0,0.00055342,120]
[319513967,1710815475782,-500.0,0.00055342,120]
[319513968,1710815475791,-500.0,0.00055342,120]
[319513969,1710815475800,-500.0,0.00055342,120]
[319513970,1710815475809,-500.0,0.00055342,120]
[319513971,1710815475819,-500.17,0.00055342,120]
[319513972,1710815475828,-500.0,0.00055342,120]
[319513973,1710815475837,-500.0,0.00055342,120]
[319513974,1710815475846,-500.0,0.00055342,120]
[319513975,1710815475855,-500.0,0.00055342,120]
[319513976,1710815475864,-500.0,0.00055342,120]
[319513977,1710815475873,-500.0,0.00055342,120]
[319513978,1710815475882,-500.0,0.00055342,120]
[319513979,1710815475891,-500.0,0.00055342,120]
[319513980,1710815475900,-500.0,0.00055342,120]
[319513981,1710815475909,-500.0,0.00055342,120]
[319513982,1710815475918,-500.0,0.00055342,120]
[319513983,1710815475929,-1329.78,0.00055342,120]
[319513984,1710815475938,-500.0,0.00055342,120]
[319513985,1710815475947,-582.83,0.00055342,120]
[319513986,1710815475957,-500.0,0.00055342,120]
[319513987,1710815475966,-500.0,0.00055342,120]
[319513988,1710815475975,-500.0,0.00055342,120]
[319513989,1710815475984,-629.18,0.00055342,120]
[319513990,1710815475993,-500.0,0.00055342,120]
[319513991,1710815476002,-500.0,0.00055342,120]
[319513992,1710815476011,-500.0,0.00055342,120]
[319513993,1710815476020,-500.0,0.00055342,120]
[319513994,1710815476030,-500.0,0.00055342,120]
[319513995,1710815476039,-2203.11,0.00055342,120]
[319513996,1710815476049,-464.31547515,0.00055342,120]
[319513997,1710815476058,-500.0,0.00055342,120]
[319513998,1710815476067,-500.0,0.00055342,120]
[319513999,1710815476077,-500.0,0.00055342,120]
[319514000,1710815476086,-500.0,0.00055342,120]
[319514001,1710815476096,-500.0,0.00055342,120]
[319514002,1710815476105,-543.05,0.00055342,120]
[319514003,1710815476114,-500.0,0.00055342,120]
[319514004,1710815476124,-500.0,0.00055342,120]
[319514005,1710815476133,-500.0,0.00055342,120]
[319514006,1710815476142,-500.0,0.00055342,120]
[319514007,1710815476151,-500.0,0.00055342,120]
[319514008,1710815476160,-500.0,0.00055342,120]
[319514009,1710815476170,-500.0,0.00055342,120]
[319514010,1710815476183,-1193.44,0.00055342,120]
[319514011,1710815476196,-500.0,0.00055342,120]
[319514012,1710815476205,-500.0,0.00055342,120]
[319514013,1710815476214,-500.0,0.00055342,120]
[319514014,1710815476224,-155.93055901,0.00055342,120]
[319514015,1710815476234,-500.0,0.00055342,120]
[319514016,1710815476244,-500.0,0.00055342,120]
[319514017,1710815476253,-500.0,0.00055342,120]
[319514018,1710815476263,-500.0,0.00055342,120]
[319514019,1710815476272,-500.0,0.00055342,120]
[319514020,1710815476281,-665.4,0.00055342,120]
[319514021,1710815476291,-500.0,0.00055342,120]
[319514022,1710815476301,-500.0,0.00055342,120]
[319514023,1710815476310,-1023.53,0.00055342,120]
[319514024,1710815476320,-500.0,0.00055342,120]
[319514025,1710815476329,-500.0,0.00055342,120]
[319514026,1710815476339,-435.68664229,0.00055342,120]
[319514027,1710815476350,-500.0,0.00055342,120]
[319514028,1710815476359,-500.0,0.00055342,120]
[319514029,1710815476368,-500.0,0.00055342,120]
[319514030,1710815476377,-200.0,0.00055342,120]
[319514031,1710815476387,-562.8,0.00055342,120]
[319514032,1710815476396,-500.0,0.00055342,120]
[319514033,1710815476405,-679.96,0.00055342,120]
[319514034,1710815476414,-500.0,0.00055342,120]
[319514035,1710815476423,-500.0,0.00055342,120]
[319514036,1710815476438,-505.63473565,0.00055342,120]
[319514037,1710815476448,-500.0,0.00055342,120]
[319514038,1710815476457,-500.0,0.00055342,120]
[319514039,1710815476467,-500.0,0.00055342,120]
[319514040,1710815476477,-500.0,0.00055342,120]
[319514041,1710815476486,-500.0,0.00055342,120]
[319514042,1710815476496,-500.0,0.00055342,120]
[319514043,1710815476506,-500.0,0.00055342,120]
[319514044,1710815476516,-500.0,0.00055342,120]
[319514045,1710815476525,-500.0,0.00055342,120]
[319514046,1710815476535,-500.0,0.00055342,120]
[319514047,1710815476544,-507.70819263,0.00055342,120]
[319514048,1710815476553,-500.0,0.00055342,120]
[319514049,1710815476563,-500.0,0.00055342,120]
[319514050,1710815476572,-605.17,0.00055342,120]
[319514051,1710815476581,-500.0,0.00055342,120]
[319514052,1710815476590,-500.0,0.00055342,120]
[319514053,1710815476600,-500.0,0.00055342,120]
[319514054,1710815476609,-519.12,0.00055342,120]
[319514055,1710815476618,-500.0,0.00055342,120]
[319514056,1710815476628,-500.0,0.00055342,120]
[319514057,1710815476637,-500.0,0.00055342,120]
[319514058,1710815476646,-500.0,0.00055342,120]
[319514059,1710815476656,-808.77,0.00055342,120]
[319514060,1710815476665,-500.0,0.00055342,120]
[319514061,1710815476675,-500.0,0.00055342,120]
[319514062,1710815476686,-500.0,0.00055342,120]
[319514063,1710815476695,-500.0,0.00055342,120]
[319514064,1710815476875,-617.67,0.00055342,120]
[319514065,1710815476884,-500.0,0.00055342,120]
[319514066,1710815476893,-500.0,0.00055342,120]
[319514067,1710815476902,-500.0,0.00055342,120]
[319514068,1710815476910,-500.0,0.00055342,120]
[319514069,1710815476919,-500.0,0.00055342,120]
[319514070,1710815476929,-500.0,0.00055342,120]
[319514071,1710815476938,-576.88,0.00055342,120]
[319514072,1710815476947,-560.64,0.00055342,120]
[319514073,1710815476956,-500.0,0.00055342,120]
[319514074,1710815476964,-500.0,0.00055342,120]
[319514075,1710815476973,-500.0,0.00055342,120]
[319514076,1710815476982,-860.34,0.00055342,120]
[319514077,1710815476990,-500.0,0.00055342,120]
[319514078,1710815476999,-500.0,0.00055342,120]
[319514079,1710815477008,-500.0,0.00055342,120]
[319514080,1710815477018,-500.0,0.00055342,120]
[319514081,1710815477027,-767.96,0.00055342,120]
[319514082,1710815477036,-500.0,0.00055342,120]
[319514083,1710815477045,-500.0,0.00055342,120]
[319514084,1710815477055,-500.0,0.00055342,120]
[319514085,1710815477064,-500.0,0.00055342,120]
[319514086,1710815477073,-651.74,0.00055342,120]
[319514087,1710815477082,-500.0,0.00055342,120]
[319514088,1710815477091,-510.12,0.00055342,120]
[319514089,1710815477100,-500.0,0.00055342,120]
[319514090,1710815477110,-500.0,0.00055342,120]
[319514091,1710815477119,-500.0,0.00055342,120]
[319514092,1710815477128,-500.0,0.00055342,120]
[319514093,1710815477137,-500.0,0.00055342,120]
[319514094,1710815477147,-501.93609961,0.00055342,120]
[319514095,1710815477156,-500.0,0.00055342,120]
[319514096,1710815477166,-500.0,0.00055342,120]
[319514097,1710815477175,-560.99,0.00055342,120]
[319514098,1710815477185,-500.0,0.00055342,120]
[319514099,1710815477196,-500.0,0.00055342,120]
[319514100,1710815477205,-500.0,0.00055342,120]
[319514101,1710815477217,-577.70950087,0.00055342,120]
[319514102,1710815477226,-500.0,0.00055342,120]
[319514103,1710815477235,-500.0,0.00055342,120]
[319514104,1710815477244,-500.0,0.00055342,120]
[319514105,1710815477255,-500.0,0.00055342,120]
[319514106,1710815477264,-500.0,0.00055342,120]
[319514107,1710815477273,-500.0,0.00055342,120]
[319514108,1710815477282,-500.0,0.00055342,120]
[319514109,1710815477292,-500.0,0.00055342,120]
[319514110,1710815477301,-500.0,0.00055342,120]
[319514111,1710815477311,-500.0,0.00055342,120]
[319514112,1710815477320,-500.0,0.00055342,120]
[319514113,1710815477329,-500.0,0.00055342,120]
[319514114,1710815477338,-500.0,0.00055342,120]
[319514115,1710815477347,-1149.13,0.00055342,120]
[319514116,1710815477356,-500.0,0.00055342,120]
[319514117,1710815477366,-500.0,0.00055342,120]
[319514118,1710815477374,-500.0,0.00055342,120]
[319514119,1710815477384,-500.0,0.00055342,120]
[319514120,1710815477393,-500.0,0.00055342,120]
[319514121,1710815477402,-526.59,0.00055342,120]
[319514122,1710815477411,-500.0,0.00055342,120]
[319514123,1710815477421,-500.0,0.00055342,120]
[319514124,1710815477434,-1855.21,0.00055342,120]
[319514125,1710815477444,-570.05,0.00055342,120]
[319514126,1710815477454,-500.0,0.00055342,120]
[319514127,1710815477464,-500.0,0.00055342,120]
[319514128,1710815477473,-500.0,0.00055342,120]
[319514129,1710815477482,-500.0,0.00055342,120]
[319514130,1710815477492,-500.0,0.00055342,120]
[319514131,1710815477501,-500.0,0.00055342,120]
[319514132,1710815477512,-500.0,0.00055342,120]
[319514133,1710815477521,-500.0,0.00055342,120]
[319514134,1710815477531,-500.0,0.00055342,120]
[319514135,1710815477541,-562.65,0.00055342,120]
[319514136,1710815477551,-500.0,0.00055342,120]
[319514137,1710815477561,-500.0,0.00055342,120]
[319514138,1710815477571,-500.0,0.00055342,120]
[319514139,1710815477581,-500.0,0.00055342,120]
[319514140,1710815477590,-500.0,0.00055342,120]
[319514141,1710815477600,-500.0,0.00055342,120]
[319514142,1710815477609,-1166.58,0.00055342,120]
[319514143,1710815477619,-565.46862721,0.00055342,120]
[319514144,1710815477628,-500.0,0.00055342,120]
[319514145,1710815477638,-500.0,0.00055342,120]
[319514146,1710815477647,-850.9,0.00055342,120]
[319514147,1710815477656,-500.0,0.00055342,120]
[319514148,1710815477665,-500.0,0.00055342,120]
[319514149,1710815477675,-500.0,0.00055342,120]
[319514150,1710815477691,-545.02,0.00055342,120]
[319514151,1710815477701,-500.0,0.00055342,120]
[319514152,1710815477710,-500.0,0.00055342,120]
[319514153,1710815477719,-633.95,0.00055342,120]
[319514154,1710815477729,-500.0,0.00055342,120]
[319514155,1710815477738,-1253.56,0.00055342,120]
[319514156,1710815477748,-500.0,0.00055342,120]
[319514157,1710815477757,-500.0,0.00055342,120]
[319514158,1710815477768,-500.0,0.00055342,120]
[319514159,1710815477777,-500.0,0.00055342,120]
[319514160,1710815477788,-500.0,0.00055342,120]
[319514161,1710815477798,-500.0,0.00055342,120]
[319514162,1710815477808,-818.27,0.00055342,120]
[319514163,1710815477818,-542.07,0.00055342,120]
[319514164,1710815477828,-500.0,0.00055342,120]
[319514165,1710815477837,-500.0,0.00055342,120]
[319514166,1710815477847,-500.0,0.00055342,120]
[319514167,1710815477857,-500.0,0.00055342,120]
[319514168,1710815477866,-500.0,0.00055342,120]
[319514169,1710815477876,-500.0,0.00055342,120]
[319514170,1710815477885,-500.0,0.00055342,120]
[319514171,1710815477894,-500.0,0.00055342,120]
[319514172,1710815477904,-500.0,0.00055342,120]
[319514173,1710815477913,-500.0,0.00055342,120]
[319514174,1710815477923,-701.1,0.00055342,120]
[319514175,1710815477938,-500.0,0.00055342,120]
[319514176,1710815477948,-500.0,0.00055342,120]
[319514177,1710815477957,-500.0,0.00055342,120]
[319514178,1710815477967,-500.0,0.00055342,120]
[319514179,1710815477976,-500.39,0.00055342,120]
[319514180,1710815477985,-500.0,0.00055342,120]
[319514181,1710815477995,-1016.71,0.00055342,120]
[319514182,1710815478004,-500.0,0.00055342,120]
[319514183,1710815478019,-904.07,0.00055342,120]
[319514184,1710815478031,-500.0,0.00055342,120]
[319514185,1710815478041,-500.0,0.00055342,120]
[319514186,1710815478052,-500.0,0.00055342,120]
[319514187,1710815478063,-729.32,0.00055342,120]
[319514188,1710815478074,-500.0,0.00055342,120]
[319514189,1710815478086,-500.0,0.00055342,120]
[319514190,1710815478097,-500.0,0.00055342,120]
[319514191,1710815478108,-546.36,0.00055342,120]
[319514192,1710815478120,-500.0,0.00055342,120]
[319514193,1710815478131,-500.0,0.00055342,120]
[319514194,1710815478141,-500.0,0.00055342,120]
[319514195,1710815478151,-500.0,0.00055342,120]
[319514196,1710815478161,-856.53,0.00055342,120]
[319514197,1710815478171,-500.0,0.00055342,120]
[319514198,1710815478188,-613.8,0.00055342,120]
[319514199,1710815478199,-1013.58,0.00055342,120]
[319514200,1710815478211,-500.0,0.00055342,120]
[319514201,1710815478224,-500.0,0.00055342,120]
[319514202,1710815478236,-212.04936197,0.00055342,120]
[319514203,1710815478247,-574.82,0.00055342,120]
[319514204,1710815478258,-500.0,0.00055342,120]
[319514205,1710815478268,-862.05,0.00055342,120]
[319514206,1710815478279,-562.69,0.00055342,120]
[319514207,1710815478290,-500.0,0.00055342,120]
[319514208,1710815478302,-768.51,0.00055342,120]
[319514209,1710815478313,-617.58,0.00055342,120]
[319514210,1710815478324,-500.0,0.00055342,120]
[319514211,1710815478334,-500.0,0.00055342,120]
[319514212,1710815478344,-554.6,0.00055342,120]
[319514213,1710815478354,-686.3,0.00055342,120]
[319514214,1710815478364,-500.0,0.00055342,120]
[319514215,1710815478374,-500.0,0.00055342,120]
[319514216,1710815478384,-500.0,0.00055342,7]
[319514217,1710815478394,-500.0,0.00055342,120]
[319514218,1710815478403,-500.0,0.00055342,120]
[319514219,1710815478413,-500.0,0.00055342,120]
[319514220,1710815478423,-500.0,0.00055342,120]
[319514221,1710815478439,-500.0,0.00055342,120]
[319514222,1710815478448,-500.0,0.00055342,120]
[319514223,1710815478457,-574.08,0.00055342,120]
[319514224,1710815478468,-500.0,0.00055342,120]
[319514225,1710815478477,-500.0,0.00055342,120]
[319514226,1710815478486,-150.0,0.00055342,120]
[319514227,1710815478496,-500.0,0.00055342,120]
[319514228,1710815478505,-500.0,0.00055342,120]
[319514229,1710815478515,-558.17,0.00055342,120]
[319514230,1710815478524,-500.0,0.00055342,120]
[319514231,1710815478534,-1137.59,0.00055342,120]
[319514232,1710815478543,-500.0,0.00055342,120]
[319514233,1710815478552,-500.0,0.00055342,120]
[319514234,1710815478562,-500.0,0.00055342,120]
[319514235,1710815478571,-500.0,0.00055342,120]
[319514236,1710815478580,-500.0,0.00055342,120]
[319514237,1710815478590,-500.0,0.00055342,120]
[319514238,1710815478599,-504.5130726,0.00055342,120]
[319514239,1710815478608,-507.81,0.00055342,120]
[319514240,1710815478618,-500.0,0.00055342,120]
[319514241,1710815478627,-500.0,0.00055342,120]
[319514242,1710815478636,-1066.39,0.00055342,120]
[319514243,1710815478646,-503.21832968,0.00055342,120]
[319514244,1710815478655,-5040.59527163,0.00055342,120]
[319514245,1710815478664,-726.06,0.00055342,120]
[319514246,1710815478674,-500.0,0.00055342,120]
[319514247,1710815478688,-955.3,0.00055342,120]
[319514248,1710815478697,-506.37,0.00055342,120]
[319514249,1710815478707,-500.0,0.00055342,120]
[319514250,1710815478716,-500.0,0.00055342,120]
[319514251,1710815478725,-500.0,0.00055342,120]
[319514252,1710815478734,-729.9,0.00055342,120]
[319514253,1710815478743,-500.0,0.00055342,120]
[319514254,1710815478753,-500.0,0.00055342,120]
[319514255,1710815478762,-500.80237766,0.00055342,120]
[319514256,1710815478771,-500.0,0.00055342,120]
[319514257,1710815478780,-500.0,0.00055342,120]
[319514258,1710815478790,-500.0,0.00055342,120]
[319514259,1710815478799,-500.0,0.00055342,120]
[319514260,1710815478808,-1170.74,0.00055342,120]
[319514261,1710815478818,-500.0,0.00055342,120]
[319514262,1710815478827,-500.0,0.00055342,120]
[319514263,1710815478836,-500.0,0.00055342,120]
[319514264,1710815478845,-788.67,0.00055342,120]
[319514265,1710815478855,-643.23,0.00055342,120]
[319514266,1710815478864,-663.98,0.00055342,120]
[319514267,1710815478873,-1563.39,0.00055342,120]
[319514268,1710815478882,-500.0,0.00055342,120]
[319514269,1710815478891,-500.0,0.00055342,120]
[319514270,1710815478901,-500.0,0.00055342,120]
[319514271,1710815478910,-1183.44,0.00055342,120]
[319514272,1710815478919,-500.0,0.00055342,120]
[319514273,1710815478930,-948.97,0.00055342,120]
[319514274,1710815478939,-500.0,0.00055342,120]
[319514275,1710815478948,-500.0,0.00055342,120]
[319514276,1710815478958,-2249.71,0.00055342,120]
[319514277,1710815478967,-1113.91,0.00055342,120]
[319514278,1710815478976,-500.0,0.00055342,120]
[319514279,1710815478985,-500.0,0.00055342,120]
[319514280,1710815478995,-531.34,0.00055342,120]
[319514281,1710815479005,-679.57,0.00055342,120]
[319514282,1710815479015,-500.0,0.00055342,120]
[319514283,1710815479025,-500.0,0.00055342,120]
[319514284,1710815479035,-533.41,0.00055342,120]
[319514285,1710815479045,-500.0,0.00055342,120]
[319514286,1710815479054,-500.0,0.00055342,120]
[319514287,1710815479064,-500.0,0.00055342,120]
[319514288,1710815479073,-838.15,0.00055342,120]
[319514289,1710815479082,-500.0,0.00055342,120]
[319514290,1710815479092,-625.29,0.00055342,120]
[319514291,1710815479105,-500.0,0.00055342,120]
[319514292,1710815479114,-500.0,0.00055342,120]
[319514293,1710815479124,-500.0,0.00055342,120]
[319514294,1710815479133,-703.41,0.00055342,120]
[319514295,1710815479143,-1115.71,0.00055342,120]
[319514296,1710815479152,-817.98,0.00055342,120]
[319514297,1710815479162,-847.82,0.00055342,120]
[319514298,1710815479171,-500.0,0.00055342,120]
[319514299,1710815479182,-500.0,0.00055342,120]
[319514300,1710815479193,-1128.56,0.00055342,120]
[319514301,1710815479204,-500.0,0.00055342,120]
[319514302,1710815479213,-1214.41,0.00055342,120]
[319514303,1710815479223,-1007.84,0.00055342,120]
[319514304,1710815479233,-500.0,0.00055342,120]
[319514305,1710815479243,-500.0,0.00055342,120]
[319514306,1710815479252,-500.0,0.00055342,120]
[319514307,1710815479262,-505.62594049,0.00055342,120]
[319514308,1710815479272,-1752.57,0.00055342,120]
[319514309,1710815479281,-500.0,0.00055342,120]
[319514310,1710815479291,-500.0,0.00055342,120]
[319514311,1710815479300,-500.0,0.00055342,120]
[319514312,1710815479310,-503.2248394,0.00055342,120]
[319514313,1710815479319,-500.0,0.00055342,120]
[319514314,1710815479328,-500.0,0.00055342,120]
[319514315,1710815479338,-500.0,0.00055342,120]
[319514316,1710815479347,-500.0,0.00055342,120]
[319514317,1710815479356,-500.0,0.00055342,120]
[319514318,1710815479366,-1734.48,0.00055342,120]
[319514319,1710815479375,-500.0,0.00055342,120]
[319514320,1710815479384,-500.0,0.00055342,120]
[319514321,1710815479394,-500.0,0.00055342,120]
[319514322,1710815479403,-500.0,0.00055342,120]
[319514323,1710815479412,-567.29,0.00055342,120]
[319514324,1710815479421,-500.0,0.00055342,120]
[319514325,1710815479433,-970.9,0.00055342,120]
[319514326,1710815479443,-500.0,0.00055342,120]
[319514327,1710815479453,-500.0,0.00055342,120]
[319514328,1710815479462,-500.0,0.00055342,120]
[319514329,1710815479472,-500.0,0.00055342,120]
[319514330,1710815479482,-778.75,0.00055342,120]
[319514331,1710815479491,-500.0,0.00055342,120]
[319514332,1710815479501,-500.0,0.00055342,120]
[319514333,1710815479511,-500.0,0.00055342,120]
[319514334,1710815479520,-500.0,0.00055342,120]
[319514335,1710815479530,-616.98,0.00055342,120]
[319514336,1710815479541,-663.45,0.00055342,120]
[319514337,1710815479550,-712.94,0.00055342,120]
[319514338,1710815479560,-674.44,0.00055342,120]
[319514339,1710815479569,-583.59406816,0.00055342,120]
[319514340,1710815479579,-841.0,0.00055342,120]
[319514341,1710815479589,-500.0,0.00055342,120]
[319514342,1710815479598,-500.0,0.00055342,120]
[319514343,1710815479608,-500.0,0.00055342,120]
[319514344,1710815479618,-885.77,0.00055342,120]
[319514345,1710815479627,-500.0,0.00055342,120]
[319514346,1710815479637,-500.0,0.00055342,120]
[319514347,1710815479646,-500.0,0.00055342,120]
[319514348,1710815479655,-674.33,0.00055342,120]
[319514349,1710815479664,-500.0,0.00055342,120]
[319514350,1710815479674,-500.0,0.00055342,120]
[319514351,1710815479688,-500.0,0.00055342,120]
[319514352,1710815479698,-500.0,0.00055342,120]
[319514353,1710815479708,-500.0,0.00055342,120]
[319514354,1710815479718,-1145.84,0.00055342,120]
[319514355,1710815479728,-537.62,0.00055342,120]
[319514356,1710815479738,-500.0,0.00055342,120]
[319514357,1710815479749,-500.0,0.00055342,120]
[319514358,1710815479758,-913.79,0.00055342,120]
[319514359,1710815479768,-529.25,0.00055342,120]
[319514360,1710815479777,-808.32,0.00055342,120]
[319514361,1710815479786,-500.0,0.00055342,120]
[319514362,1710815479796,-500.0,0.00055342,120]
[319514363,1710815479806,-500.0,0.00055342,120]
[319514364,1710815479815,-500.0,0.00055342,120]
[319514365,1710815479825,-1208.18,0.00055342,120]
[319514366,1710815479834,-500.0,0.00055342,120]
[319514367,1710815479844,-519.63121519,0.00055342,120]
[319514368,1710815479853,-500.0,0.00055342,2]
[319514369,1710815479863,-500.0,0.00055342,120]
[319514370,1710815479872,-500.0,0.00055342,120]
[319514371,1710815479881,-575.55,0.00055342,120]
[319514372,1710815479891,-997.06,0.00055342,120]
[319514373,1710815479900,-500.0,0.00055342,120]
[319514374,1710815479909,-924.28,0.00055342,120]
[319514375,1710815479918,-500.0,0.00055342,120]
[319514376,1710815479930,-500.0,0.00055342,120]
[319514377,1710815479940,-1392.56,0.00055342,120]
[319514378,1710815479949,-500.0,0.00055342,120]
[319514379,1710815479959,-500.0,0.00055342,120]
[319514380,1710815479968,-500.0,0.00055342,120]
[319514381,1710815479977,-500.0,0.00055342,120]
[319514382,1710815479987,-500.0,0.00055342,120]
[319514383,1710815479996,-500.0,0.00055342,120]
[319514384,1710815480005,-500.0,0.00055342,120]
[319514385,1710815480015,-856.25,0.00055342,120]
[319514386,1710815480025,-991.32,0.00055342,120]
[319514387,1710815480035,-500.0,0.00055342,120]
[319514388,1710815480045,-530.13,0.00055342,120]
[319514389,1710815480055,-1127.97,0.00055342,120]
[319514390,1710815480066,-615.03,0.00055342,120]
[319514391,1710815480076,-500.0,0.00055342,120]
[319514392,1710815480087,-1031.95,0.00055342,120]
[319514393,1710815480098,-500.0,0.00055342,120]
[319514394,1710815480108,-584.35,0.00055342,120]
[319514395,1710815480119,-1986.08,0.00055342,120]